[Event "Live Chess"]
[Site "Chess.com"]
[Date "2023.05.20"]
[Round "-"]
[White "Driftboard"]
[Black "PiotrD11"]
[Result "0-1"]
[WhiteElo "746"]
[BlackElo "1335"]
[TimeControl "300"]
[EndTime "9:44:57 PDT"]
[Termination "PiotrD11 won by checkmate"]

1. e4 {[%clk 0:04:52.3]} 1... d5 {[%clk 0:04:59.9]} 2. exd5 {[%clk 0:04:50.7]}
2... Nf6 {[%clk 0:04:59]} 3. Nc3 {[%clk 0:04:49.4]} 3... Nxd5 {[%clk 0:04:57.8]}
4. Nxd5 {[%clk 0:04:47.4]} 4... Qxd5 {[%clk 0:04:57.7]} 5. Nf3 {[%clk
0:04:45.9]} 5... e5 {[%clk 0:04:53.9]} 6. Be2 {[%clk 0:04:43.2]} 6... Nc6 {[%clk
0:04:51.5]} 7. O-O {[%clk 0:04:41.3]} 7... Bd6 {[%clk 0:04:50.8]} 8. h3 {[%clk
0:04:40.1]} 8... O-O {[%clk 0:04:49.7]} 9. d3 {[%clk 0:04:38.7]} 9... Bf5 {[%clk
0:04:43.1]} 10. Nh4 {[%clk 0:04:34.3]} 10... Be6 {[%clk 0:04:40.7]} 11. Bg4
{[%clk 0:04:31.2]} 11... Bxg4 {[%clk 0:04:34.2]} 12. Qxg4 {[%clk 0:04:28.9]}
12... Be7 {[%clk 0:04:23.7]} 13. Nf5 {[%clk 0:04:26.7]} 13... Bf6 {[%clk
0:04:19.9]} 14. Bg5 {[%clk 0:04:20.9]} 14... Bxg5 {[%clk 0:04:12.2]} 15. Qxg5
{[%clk 0:04:19.6]} 15... g6 {[%clk 0:04:06.1]} 16. Ne7+ {[%clk 0:04:16.9]} 16...
Nxe7 {[%clk 0:04:04.4]} 17. Qxe7 {[%clk 0:04:14.4]} 17... Rae8 {[%clk
0:04:03.8]} 18. Qxc7 {[%clk 0:04:11.6]} 18... Rc8 {[%clk 0:04:02.3]} 19. Qe7
{[%clk 0:04:07.2]} 19... Rxc2 {[%clk 0:04:00.4]} 20. b3 {[%clk 0:04:03.2]} 20...
Rfc8 {[%clk 0:03:45.3]} 21. Rfd1 {[%clk 0:03:54.8]} 21... R2c7 {[%clk
0:03:36.5]} 22. Qg5 {[%clk 0:03:45.4]} 22... Qd4 {[%clk 0:03:29.9]} 23. Rac1
{[%clk 0:03:39.2]} 23... Rxc1 {[%clk 0:03:22.6]} 24. Rxc1 {[%clk 0:03:37.2]}
24... Rxc1+ {[%clk 0:03:21.4]} 25. Qxc1 {[%clk 0:03:35.4]} 25... Qxd3 {[%clk
0:03:21]} 26. Qb2 {[%clk 0:03:31.1]} 26... e4 {[%clk 0:03:14.8]} 27. Kh2 {[%clk
0:03:25]} 27... Qd6+ {[%clk 0:03:00.2]} 28. g3 {[%clk 0:03:21.1]} 28... b6
{[%clk 0:02:57]} 29. h4 {[%clk 0:03:19.7]} 29... Qc5 {[%clk 0:02:49.6]} 30. Kg2
{[%clk 0:03:16.4]} 30... h5 {[%clk 0:02:46.8]} 31. Qe2 {[%clk 0:03:08.8]} 31...
Qd5 {[%clk 0:02:42.1]} 32. Qe3 {[%clk 0:02:56.5]} 32... Qd3 {[%clk 0:02:37.1]}
33. Qf4 {[%clk 0:02:51.2]} 33... Kh7 {[%clk 0:02:11]} 34. Qc7 {[%clk 0:02:46.6]}
34... Qf3+ {[%clk 0:02:08.2]} 35. Kf1 {[%clk 0:02:42.6]} 35... e3 {[%clk
0:02:06.2]} 36. Qc4 {[%clk 0:02:31.2]} 36... Qxf2# {[%clk 0:02:01.3]} 0-1

[Event "Live Chess"]
[Site "Chess.com"]
[Date "2023.05.20"]
[Round "-"]
[White "PureMellowPlan"]
[Black "ethanredball"]
[Result "1-0"]
[WhiteElo "613"]
[BlackElo "575"]
[TimeControl "300"]
[EndTime "9:45:04 PDT"]
[Termination "PureMellowPlan won by checkmate"]

1. e4 {[%clk 0:04:43.7]} 1... e5 {[%clk 0:04:58.5]} 2. Nf3 {[%clk 0:04:42.5]}
2... Nc6 {[%clk 0:04:56.9]} 3. Nc3 {[%clk 0:04:42.1]} 3... Nf6 {[%clk 0:04:56]}
4. Bb5 {[%clk 0:04:41.4]} 4... Bb4 {[%clk 0:04:55.2]} 5. Bxc6 {[%clk 0:04:40.1]}
5... Bxc3 {[%clk 0:04:54.2]} 6. Bxd7+ {[%clk 0:04:37.5]} 6... Bxd7 {[%clk
0:04:53.3]} 7. dxc3 {[%clk 0:04:36.5]} 7... Nxe4 {[%clk 0:04:46]} 8. O-O {[%clk
0:04:33.4]} 8... Nf6 {[%clk 0:04:44.2]} 9. Re1 {[%clk 0:04:30.3]} 9... e4 {[%clk
0:04:39.9]} 10. Ne5 {[%clk 0:04:24.1]} 10... O-O {[%clk 0:04:36.6]} 11. Nxd7
{[%clk 0:04:20.9]} 11... Qxd7 {[%clk 0:04:34.1]} 12. Qxd7 {[%clk 0:04:18.3]}
12... Nxd7 {[%clk 0:04:32.8]} 13. Rxe4 {[%clk 0:04:17.1]} 13... Rae8 {[%clk
0:04:31.9]} 14. Rxe8 {[%clk 0:04:08.4]} 14... Rxe8 {[%clk 0:04:30.8]} 15. Be3
{[%clk 0:04:06.7]} 15... Ne5 {[%clk 0:04:28.5]} 16. Rd1 {[%clk 0:04:03.7]} 16...
Ng4 {[%clk 0:04:26.5]} 17. Rd3 {[%clk 0:03:58.1]} 17... h6 {[%clk 0:04:25]} 18.
h3 {[%clk 0:03:55.2]} 18... Nxe3 {[%clk 0:04:23.3]} 19. Rxe3 {[%clk 0:03:53.7]}
19... Rxe3 {[%clk 0:04:21.7]} 20. fxe3 {[%clk 0:03:53.2]} 20... Kh7 {[%clk
0:04:19.5]} 21. Kf2 {[%clk 0:03:52.5]} 21... Kg6 {[%clk 0:04:18.4]} 22. Kf3
{[%clk 0:03:51.9]} 22... Kg5 {[%clk 0:04:17.7]} 23. Kg3 {[%clk 0:03:48.6]} 23...
f5 {[%clk 0:04:16.8]} 24. h4+ {[%clk 0:03:48]} 24... Kh5 {[%clk 0:04:15.4]} 25.
c4 {[%clk 0:03:45.1]} 25... g5 {[%clk 0:04:14.9]} 26. hxg5 {[%clk 0:03:43.7]}
26... Kxg5 {[%clk 0:04:13.5]} 27. Kh3 {[%clk 0:03:43.1]} 27... h5 {[%clk
0:04:12.1]} 28. g3 {[%clk 0:03:41.2]} 28... a6 {[%clk 0:04:00.9]} 29. b4 {[%clk
0:03:33.5]} 29... b5 {[%clk 0:03:59.7]} 30. cxb5 {[%clk 0:03:32.3]} 30... axb5
{[%clk 0:03:58.8]} 31. Kg2 {[%clk 0:03:28.5]} 31... Kg4 {[%clk 0:03:57]} 32. c3
{[%clk 0:03:26.6]} 32... h4 {[%clk 0:03:54.1]} 33. gxh4 {[%clk 0:03:25.4]} 33...
Kxh4 {[%clk 0:03:53.2]} 34. Kf3 {[%clk 0:03:24.3]} 34... Kg5 {[%clk 0:03:52.4]}
35. e4 {[%clk 0:03:23.1]} 35... fxe4+ {[%clk 0:03:51.6]} 36. Kxe4 {[%clk
0:03:22.5]} 36... Kf6 {[%clk 0:03:51]} 37. Kd5 {[%clk 0:03:21.5]} 37... Kf5
{[%clk 0:03:49.9]} 38. Kc5 {[%clk 0:03:20.8]} 38... Ke4 {[%clk 0:03:49]} 39.
Kxb5 {[%clk 0:03:20.2]} 39... Kd3 {[%clk 0:03:46.4]} 40. a4 {[%clk 0:03:19.7]}
40... Kxc3 {[%clk 0:03:45.4]} 41. a5 {[%clk 0:03:19]} 41... Kd4 {[%clk
0:03:43.8]} 42. a6 {[%clk 0:03:18.3]} 42... Kd5 {[%clk 0:03:42.9]} 43. a7 {[%clk
0:03:17.7]} 43... Kd6 {[%clk 0:03:42.4]} 44. a8=Q {[%clk 0:03:16.2]} 44... c5
{[%clk 0:03:41.7]} 45. Qc6+ {[%clk 0:03:14.7]} 45... Ke5 {[%clk 0:03:39.8]} 46.
Qxc5+ {[%clk 0:03:13.3]} 46... Kf4 {[%clk 0:03:38.9]} 47. Kc4 {[%clk 0:03:12.3]}
47... Kg3 {[%clk 0:03:37.8]} 48. b5 {[%clk 0:03:11.6]} 48... Kf3 {[%clk
0:03:37.2]} 49. b6 {[%clk 0:03:10.9]} 49... Ke2 {[%clk 0:03:36.5]} 50. b7 {[%clk
0:03:09.8]} 50... Kf3 {[%clk 0:03:35.8]} 51. b8=Q {[%clk 0:03:08.3]} 51... Ke2
{[%clk 0:03:35.3]} 52. Qbe5+ {[%clk 0:03:06.7]} 52... Kf3 {[%clk 0:03:34.9]} 53.
Qce3+ {[%clk 0:03:05.4]} 53... Kg2 {[%clk 0:03:33.6]} 54. Q5e4+ {[%clk
0:03:03.6]} 54... Kh2 {[%clk 0:03:31.9]} 55. Qg2+ {[%clk 0:03:02.3]} 55... Kxg2
{[%clk 0:03:30.7]} 56. Kd3 {[%clk 0:03:01.4]} 56... Kh2 {[%clk 0:03:28]} 57. Ke2
{[%clk 0:03:00.5]} 57... Kh1 {[%clk 0:03:26.4]} 58. Qg5 {[%clk 0:02:58.8]} 58...
Kh2 {[%clk 0:03:25.2]} 59. Kf3 {[%clk 0:02:57.1]} 59... Kh3 {[%clk 0:03:24.3]}
60. Qh5# {[%clk 0:02:54.4]} 1-0

[Event "Live Chess"]
[Site "Chess.com"]
[Date "2023.05.20"]
[Round "-"]
[White "JormaIbo"]
[Black "ConorMaclaud"]
[Result "0-1"]
[WhiteElo "421"]
[BlackElo "2118"]
[TimeControl "300"]
[EndTime "9:45:05 PDT"]
[Termination "ConorMaclaud won on time"]

1. e4 {[%clk 0:04:58.6]} 1... c6 {[%clk 0:04:59.9]} 2. d4 {[%clk 0:04:56.3]}
2... d5 {[%clk 0:04:59.8]} 3. e5 {[%clk 0:04:55.9]} 3... Bf5 {[%clk 0:04:58.4]}
4. Nf3 {[%clk 0:04:49.2]} 4... e6 {[%clk 0:04:57]} 5. Bd3 {[%clk 0:04:47]} 5...
Bxd3 {[%clk 0:04:55.4]} 6. Qxd3 {[%clk 0:04:46.4]} 6... Ne7 {[%clk 0:04:54.8]}
7. O-O {[%clk 0:04:44.5]} 7... Nf5 {[%clk 0:04:54]} 8. Nbd2 {[%clk 0:04:13.5]}
8... Be7 {[%clk 0:04:39.6]} 9. c4 {[%clk 0:04:12]} 9... O-O {[%clk 0:04:35.4]}
10. c5 {[%clk 0:04:04.7]} 10... b6 {[%clk 0:04:32.7]} 11. b4 {[%clk 0:04:01.5]}
11... a5 {[%clk 0:04:31.5]} 12. bxa5 {[%clk 0:03:45.9]} 12... bxc5 {[%clk
0:04:28.9]} 13. Re1 {[%clk 0:03:00.1]} 13... c4 {[%clk 0:04:09.4]} 14. Qc2
{[%clk 0:02:47.7]} 14... Qxa5 {[%clk 0:03:58.3]} 15. a4 {[%clk 0:02:39]} 15...
Bb4 {[%clk 0:03:39.9]} 16. h3 {[%clk 0:01:58.4]} 16... c5 {[%clk 0:02:57.6]} 17.
dxc5 {[%clk 0:01:50.7]} 17... Bxc5 {[%clk 0:02:54.9]} 18. Nb1 {[%clk 0:01:26.1]}
18... Nd4 {[%clk 0:02:46.7]} 19. Nxd4 {[%clk 0:01:23.9]} 19... Qxe1+ {[%clk
0:02:44]} 20. Kh2 {[%clk 0:01:21.2]} 20... Bxd4 {[%clk 0:02:42.2]} 21. Ra3
{[%clk 0:01:10.6]} 21... Bxe5+ {[%clk 0:02:32.6]} 22. g3 {[%clk 0:01:07.7]}
22... Nc6 {[%clk 0:02:24.7]} 23. Bd2 {[%clk 0:00:50.3]} 23... Qf1 {[%clk
0:02:20.4]} 24. Qc1 {[%clk 0:00:23.3]} 24... Qxc1 {[%clk 0:02:16.7]} 25. Bxc1
{[%clk 0:00:22.6]} 25... Nd4 {[%clk 0:02:12.5]} 26. Bb2 {[%clk 0:00:18.9]} 26...
Nf3+ {[%clk 0:02:10.2]} 27. Kg2 {[%clk 0:00:16.7]} 27... Bxb2 {[%clk 0:02:09]}
28. Rxf3 {[%clk 0:00:15.2]} 28... Bf6 {[%clk 0:02:01.7]} 29. Nd2 {[%clk
0:00:11.1]} 29... Rxa4 {[%clk 0:01:59.6]} 30. Rxf6 {[%clk 0:00:06.6]} 30... gxf6
{[%clk 0:01:56.3]} 31. Nf3 {[%clk 0:00:06.5]} 31... c3 {[%clk 0:01:26.9]} 32.
Ne1 {[%clk 0:00:02.2]} 32... Re4 {[%clk 0:01:21.8]} 0-1

[Event "Live Chess"]
[Site "Chess.com"]
[Date "2023.05.20"]
[Round "-"]
[White "JuperLuper"]
[Black "JackCheetham1"]
[Result "1/2-1/2"]
[WhiteElo "1195"]
[BlackElo "1700"]
[TimeControl "300"]
[EndTime "9:45:11 PDT"]
[Termination "Game drawn by repetition"]

1. e4 {[%clk 0:04:58.5]} 1... d6 {[%clk 0:04:58.8]} 2. d4 {[%clk 0:04:56.8]}
2... Nf6 {[%clk 0:04:58]} 3. Nc3 {[%clk 0:04:54.2]} 3... g6 {[%clk 0:04:57]} 4.
f4 {[%clk 0:04:51.4]} 4... Bg7 {[%clk 0:04:55.8]} 5. Nf3 {[%clk 0:04:49.2]} 5...
Bg4 {[%clk 0:04:54.3]} 6. Bd3 {[%clk 0:04:45.9]} 6... Nc6 {[%clk 0:04:51.5]} 7.
Be2 {[%clk 0:04:36]} 7... O-O {[%clk 0:04:41.6]} 8. d5 {[%clk 0:04:34.3]} 8...
Nb8 {[%clk 0:04:32.3]} 9. O-O {[%clk 0:04:31.6]} 9... Nbd7 {[%clk 0:04:29.4]}
10. Bb5 {[%clk 0:04:29]} 10... a6 {[%clk 0:04:21.9]} 11. Bd3 {[%clk 0:04:26.6]}
11... c6 {[%clk 0:04:17.6]} 12. h3 {[%clk 0:04:23.4]} 12... Bxf3 {[%clk
0:04:14]} 13. Qxf3 {[%clk 0:04:21.7]} 13... Nc5 {[%clk 0:04:08.5]} 14. Be3
{[%clk 0:04:14.3]} 14... Nxd3 {[%clk 0:04:02]} 15. cxd3 {[%clk 0:04:12.8]} 15...
e6 {[%clk 0:03:43.7]} 16. dxe6 {[%clk 0:04:10.6]} 16... fxe6 {[%clk 0:03:41.4]}
17. e5 {[%clk 0:04:08.3]} 17... dxe5 {[%clk 0:03:36.4]} 18. fxe5 {[%clk
0:04:08.2]} 18... Nd5 {[%clk 0:03:35.4]} 19. Qe4 {[%clk 0:03:57.5]} 19... Nxe3
{[%clk 0:03:22.4]} 20. Qxe3 {[%clk 0:03:54.7]} 20... Qc7 {[%clk 0:03:02.5]} 21.
Rae1 {[%clk 0:03:51.5]} 21... Rxf1+ {[%clk 0:02:56.6]} 22. Rxf1 {[%clk
0:03:46.3]} 22... Qxe5 {[%clk 0:02:46.5]} 23. Qf3 {[%clk 0:03:44]} 23... Qf5
{[%clk 0:02:41.1]} 24. Qe3 {[%clk 0:03:40.3]} 24... Qe5 {[%clk 0:02:24.3]} 25.
Qb6 {[%clk 0:03:34.4]} 25... Qd4+ {[%clk 0:02:18.8]} 26. Qxd4 {[%clk 0:03:31.7]}
26... Bxd4+ {[%clk 0:02:18.7]} 27. Kh2 {[%clk 0:03:29.1]} 27... Bxc3 {[%clk
0:02:06.5]} 28. bxc3 {[%clk 0:03:29]} 28... Rf8 {[%clk 0:02:03.4]} 29. Rxf8+
{[%clk 0:03:27.1]} 29... Kxf8 {[%clk 0:02:02.7]} 30. Kg3 {[%clk 0:03:26.4]}
30... Kf7 {[%clk 0:02:01.6]} 31. Kf4 {[%clk 0:03:25.6]} 31... Kf6 {[%clk
0:01:59.2]} 32. g4 {[%clk 0:03:23]} 32... e5+ {[%clk 0:01:49.5]} 33. Ke4 {[%clk
0:03:21.8]} 33... Ke6 {[%clk 0:01:47.5]} 34. d4 {[%clk 0:03:20.3]} 34... exd4
{[%clk 0:01:44]} 35. Kxd4 {[%clk 0:03:18.9]} 35... Kd6 {[%clk 0:01:35.9]} 36. c4
{[%clk 0:03:16.1]} 36... b6 {[%clk 0:01:31.3]} 37. a4 {[%clk 0:03:11.6]} 37...
h6 {[%clk 0:01:23.2]} 38. h4 {[%clk 0:03:07.2]} 38... a5 {[%clk 0:01:10.8]} 39.
g5 {[%clk 0:02:51.6]} 39... h5 {[%clk 0:01:05.8]} 40. Ke4 {[%clk 0:02:49.6]}
40... Ke6 {[%clk 0:00:54]} 41. Kf4 {[%clk 0:02:43]} 41... Kd6 {[%clk 0:00:47.5]}
42. Ke4 {[%clk 0:02:41.7]} 42... Ke6 {[%clk 0:00:31.5]} 43. Kd4 {[%clk
0:02:35.8]} 43... Kd6 {[%clk 0:00:24]} 44. Ke4 {[%clk 0:02:33.6]} 1/2-1/2

[Event "Live Chess"]
[Site "Chess.com"]
[Date "2023.05.20"]
[Round "-"]
[White "AwesomeFredster"]
[Black "Rusty_Bridges"]
[Result "0-1"]
[WhiteElo "1510"]
[BlackElo "1384"]
[TimeControl "300"]
[EndTime "9:45:14 PDT"]
[Termination "Rusty_Bridges won by resignation"]

1. e4 {[%clk 0:04:58.2]} 1... d6 {[%clk 0:04:55.8]} 2. d4 {[%clk 0:04:56.4]}
2... Nf6 {[%clk 0:04:54]} 3. e5 {[%clk 0:04:55.5]} 3... dxe5 {[%clk 0:04:52.7]}
4. dxe5 {[%clk 0:04:54.8]} 4... Qxd1+ {[%clk 0:04:52.3]} 5. Kxd1 {[%clk
0:04:54.2]} 5... Ne4 {[%clk 0:04:51.4]} 6. f3 {[%clk 0:04:51.9]} 6... Nf2+
{[%clk 0:04:49.8]} 7. Ke1 {[%clk 0:04:50.8]} 7... Nxh1 {[%clk 0:04:49.7]} 8. Ke2
{[%clk 0:04:50.1]} 8... Bf5 {[%clk 0:04:46.2]} 9. c3 {[%clk 0:04:47.4]} 9... e6
{[%clk 0:04:44.5]} 10. Nd2 {[%clk 0:04:46.3]} 10... Bc5 {[%clk 0:04:43]} 11. Ne4
{[%clk 0:04:42.4]} 11... Bxe4 {[%clk 0:04:41]} 12. fxe4 {[%clk 0:04:42.3]} 12...
Nf2 {[%clk 0:04:40]} 0-1

[Event "Live Chess"]
[Site "Chess.com"]
[Date "2023.05.20"]
[Round "-"]
[White "seasidecastle27"]
[Black "HD_IN4k"]
[Result "1-0"]
[WhiteElo "1825"]
[BlackElo "297"]
[TimeControl "300"]
[EndTime "9:45:15 PDT"]
[Termination "seasidecastle27 won by resignation"]

1. d4 {[%clk 0:04:57.9]} 1... e5 {[%clk 0:04:55.3]} 2. dxe5 {[%clk 0:04:54.8]}
2... Bb4+ {[%clk 0:04:47.5]} 3. c3 {[%clk 0:04:51.4]} 3... Bc5 {[%clk
0:04:45.7]} 4. Nf3 {[%clk 0:04:45.5]} 4... f5 {[%clk 0:04:41.9]} 5. Bg5 {[%clk
0:04:36]} 5... Nf6 {[%clk 0:04:31.6]} 6. exf6 {[%clk 0:04:32.9]} 6... gxf6
{[%clk 0:04:29]} 7. Be3 {[%clk 0:04:28.4]} 7... Bxe3 {[%clk 0:04:26.7]} 8. fxe3
{[%clk 0:04:26.7]} 8... f4 {[%clk 0:04:24.5]} 9. exf4 {[%clk 0:04:25]} 9... f5
{[%clk 0:04:18]} 10. Nbd2 {[%clk 0:04:22.5]} 10... d6 {[%clk 0:04:15.4]} 11. e4
{[%clk 0:04:20.7]} 11... Nc6 {[%clk 0:04:13]} 12. Bb5 {[%clk 0:04:16.9]} 12...
a6 {[%clk 0:04:11]} 13. Bxc6+ {[%clk 0:04:14.9]} 13... bxc6 {[%clk 0:04:10.6]}
14. Qa4 {[%clk 0:04:11.8]} 14... Bb7 {[%clk 0:04:04.2]} 15. exf5 {[%clk
0:04:06.7]} 15... Qe7+ {[%clk 0:03:58.1]} 16. Kd1 {[%clk 0:03:59.5]} 16... O-O-O
{[%clk 0:03:50.2]} 17. Re1 {[%clk 0:03:56.7]} 17... Qd7 {[%clk 0:03:45.2]} 18.
Nd4 {[%clk 0:03:41.6]} 18... Rhe8 {[%clk 0:03:39.8]} 19. Ne6 {[%clk 0:03:29.3]}
19... Rxe6 {[%clk 0:02:58.2]} 20. fxe6 {[%clk 0:03:26.8]} 20... Qe7 {[%clk
0:02:55.9]} 21. Kc2 {[%clk 0:03:21.3]} 21... Qe8 {[%clk 0:02:54.2]} 22. f5
{[%clk 0:03:18.9]} 22... c5 {[%clk 0:02:48.7]} 23. Qxe8 {[%clk 0:03:16.1]} 23...
Rxe8 {[%clk 0:02:47.1]} 24. f6 {[%clk 0:03:14.5]} 24... Bd5 {[%clk 0:02:35.6]}
25. f7 {[%clk 0:03:05.6]} 25... Rf8 {[%clk 0:02:24.7]} 26. e7 {[%clk 0:03:00.8]}
26... Rxf7 {[%clk 0:02:21.2]} 27. e8=Q+ {[%clk 0:02:57.6]} 27... Kb7 {[%clk
0:02:17.3]} 1-0

[Event "Live Chess"]
[Site "Chess.com"]
[Date "2023.05.20"]
[Round "-"]
[White "risinghelios"]
[Black "Goblinbasher"]
[Result "1-0"]
[WhiteElo "1960"]
[BlackElo "1201"]
[TimeControl "300"]
[EndTime "9:45:21 PDT"]
[Termination "risinghelios won by resignation"]

1. e4 {[%clk 0:04:59.3]} 1... c5 {[%clk 0:04:55.7]} 2. Bc4 {[%clk 0:04:56.9]}
2... e6 {[%clk 0:04:54.6]} 3. Nf3 {[%clk 0:04:55.4]} 3... Nc6 {[%clk 0:04:53.2]}
4. d4 {[%clk 0:04:54.7]} 4... cxd4 {[%clk 0:04:52.1]} 5. Nxd4 {[%clk 0:04:54.6]}
5... Nge7 {[%clk 0:04:51.1]} 6. O-O {[%clk 0:04:53.1]} 6... Nxd4 {[%clk
0:04:50.1]} 7. Qxd4 {[%clk 0:04:52.7]} 7... Nc6 {[%clk 0:04:49.5]} 8. Qd1 {[%clk
0:04:48.2]} 8... a6 {[%clk 0:04:48.5]} 9. Nc3 {[%clk 0:04:47.6]} 9... b5 {[%clk
0:04:47.6]} 10. Bb3 {[%clk 0:04:47.4]} 10... Bb7 {[%clk 0:04:46.1]} 11. Bf4
{[%clk 0:04:45.2]} 11... Be7 {[%clk 0:04:39.7]} 12. Qg4 {[%clk 0:04:40.5]} 12...
O-O {[%clk 0:04:37.5]} 13. Rad1 {[%clk 0:04:35.6]} 13... d6 {[%clk 0:04:19.6]}
14. e5 {[%clk 0:04:28.7]} 14... d5 {[%clk 0:04:18.1]} 15. Ne4 {[%clk 0:04:23.3]}
15... Na5 {[%clk 0:03:59.5]} 16. Nd6 {[%clk 0:04:11.2]} 16... Bxd6 {[%clk
0:03:56.7]} 17. exd6 {[%clk 0:04:10.4]} 17... Nc4 {[%clk 0:03:54.6]} 18. Bxc4
{[%clk 0:04:08.5]} 18... bxc4 {[%clk 0:03:51.9]} 19. Be5 {[%clk 0:04:04.1]}
19... f6 {[%clk 0:03:22.8]} 20. Qxe6+ {[%clk 0:04:02.6]} 20... Kh8 {[%clk
0:03:21.6]} 21. Bg3 {[%clk 0:04:00]} 21... Bc8 {[%clk 0:03:18.2]} 22. Qxd5
{[%clk 0:03:54.3]} 22... Bd7 {[%clk 0:03:14.5]} 23. Rfe1 {[%clk 0:03:51]} 23...
Rb8 {[%clk 0:03:07.7]} 24. Re7 {[%clk 0:03:48.3]} 24... Rxb2 {[%clk 0:03:04.2]}
25. h3 {[%clk 0:03:38.3]} 25... Rxc2 {[%clk 0:02:52]} 26. Rf7 {[%clk 0:03:30.1]}
26... Rxa2 {[%clk 0:02:42]} 27. Rxf8+ {[%clk 0:03:28.3]} 27... Qxf8 {[%clk
0:02:40.3]} 28. Qxc4 {[%clk 0:03:24.3]} 28... Rb2 {[%clk 0:02:26.5]} 29. Qxa6
{[%clk 0:03:19.2]} 29... h6 {[%clk 0:02:21.9]} 30. Qd3 {[%clk 0:03:08.7]} 30...
Qf7 {[%clk 0:02:17.5]} 31. Re1 {[%clk 0:03:04]} 31... Rb8 {[%clk 0:02:00.1]} 32.
Re7 {[%clk 0:03:00.9]} 32... Qf8 {[%clk 0:01:36]} 33. Rxd7 {[%clk 0:02:58.7]}
1-0

[Event "Live Chess"]
[Site "Chess.com"]
[Date "2023.05.20"]
[Round "-"]
[White "GEMdzq"]
[Black "lamteama1"]
[Result "0-1"]
[WhiteElo "2292"]
[BlackElo "1051"]
[TimeControl "300"]
[EndTime "9:45:23 PDT"]
[Termination "lamteama1 won by resignation"]

1. e4 {[%clk 0:04:57.4]} 1... Nf6 {[%clk 0:04:51.9]} 2. e5 {[%clk 0:04:55.9]}
2... Nd5 {[%clk 0:04:47.5]} 3. d4 {[%clk 0:04:55.5]} 3... d6 {[%clk 0:04:42.9]}
4. Nf3 {[%clk 0:04:55.1]} 4... Bg4 {[%clk 0:04:36.9]} 5. Bc4 {[%clk 0:04:53.8]}
5... dxe5 {[%clk 0:04:32.5]} 6. dxe5 {[%clk 0:04:47.2]} 6... e6 {[%clk
0:04:28.8]} 7. O-O {[%clk 0:04:42.3]} 7... Nc6 {[%clk 0:04:23]} 8. Bb5 {[%clk
0:04:27.6]} 8... Qd7 {[%clk 0:04:18.3]} 9. c4 {[%clk 0:04:23.1]} 9... Ndb4
{[%clk 0:04:13.5]} 10. Bd2 {[%clk 0:04:07]} 10... O-O-O {[%clk 0:04:06.8]} 11.
Qa4 {[%clk 0:03:46.3]} 11... Bxf3 {[%clk 0:03:54.2]} 12. Bxb4 {[%clk 0:03:37.2]}
12... Qd4 {[%clk 0:03:36.5]} 13. Bxc6 {[%clk 0:02:45.7]} 13... Bxc6 {[%clk
0:03:28]} 14. Qb3 {[%clk 0:02:35]} 14... Bxb4 {[%clk 0:03:17.7]} 15. Qxb4 {[%clk
0:02:33.1]} 15... Qg4 {[%clk 0:03:09.1]} 16. f3 {[%clk 0:02:30.2]} 16... Bxf3
{[%clk 0:02:56.9]} 17. Rxf3 {[%clk 0:02:27.9]} 17... Rd1+ {[%clk 0:02:50.1]} 18.
Kf2 {[%clk 0:02:27]} 18... Rhd8 {[%clk 0:02:42.1]} 19. Nc3 {[%clk 0:01:38.1]}
19... Qh4+ {[%clk 0:02:35.7]} 20. Rg3 {[%clk 0:01:09]} 20... Qf4+ {[%clk
0:02:30.2]} 21. Rf3 {[%clk 0:01:06.7]} 21... Qh4+ {[%clk 0:02:22.8]} 22. Rg3
{[%clk 0:01:04.9]} 22... Qd4+ {[%clk 0:02:16.8]} 23. Re3 {[%clk 0:00:58.5]}
23... Qd2+ {[%clk 0:02:12.4]} 24. Kf3 {[%clk 0:00:42.5]} 24... Rxa1 {[%clk
0:02:06.6]} 25. Qc5 {[%clk 0:00:27.9]} 25... b6 {[%clk 0:02:02.2]} 26. Qc6
{[%clk 0:00:18.4]} 26... Rf1+ {[%clk 0:01:55.5]} 0-1

[Event "Live Chess"]
[Site "Chess.com"]
[Date "2023.05.20"]
[Round "-"]
[White "domrobson"]
[Black "MartinWalker4"]
[Result "1-0"]
[WhiteElo "1725"]
[BlackElo "2008"]
[TimeControl "300"]
[EndTime "9:45:35 PDT"]
[Termination "domrobson won by resignation"]

1. d4 {[%clk 0:04:59.1]} 1... Nf6 {[%clk 0:04:57.8]} 2. c4 {[%clk 0:04:58]} 2...
g6 {[%clk 0:04:56.1]} 3. Nc3 {[%clk 0:04:57.4]} 3... d5 {[%clk 0:04:54.6]} 4.
cxd5 {[%clk 0:04:55.9]} 4... Nxd5 {[%clk 0:04:52.9]} 5. e4 {[%clk 0:04:55.5]}
5... Nxc3 {[%clk 0:04:51.5]} 6. bxc3 {[%clk 0:04:55.4]} 6... Bg7 {[%clk
0:04:49.9]} 7. Nf3 {[%clk 0:04:55]} 7... c5 {[%clk 0:04:47.8]} 8. Be2 {[%clk
0:04:53.3]} 8... O-O {[%clk 0:04:45.5]} 9. O-O {[%clk 0:04:52.3]} 9... Nc6
{[%clk 0:04:43.3]} 10. Be3 {[%clk 0:04:49.9]} 10... cxd4 {[%clk 0:04:40.2]} 11.
cxd4 {[%clk 0:04:48.8]} 11... Bg4 {[%clk 0:04:29.4]} 12. d5 {[%clk 0:04:45.7]}
12... Bxf3 {[%clk 0:04:27.9]} 13. Bxf3 {[%clk 0:04:43.4]} 13... Ne5 {[%clk
0:04:26.8]} 14. Be2 {[%clk 0:04:41.6]} 14... f5 {[%clk 0:04:22.3]} 15. f4 {[%clk
0:04:40]} 15... Ng4 {[%clk 0:04:18.7]} 16. Bxg4 {[%clk 0:04:38.6]} 16... Bxa1
{[%clk 0:04:08.7]} 17. Qxa1 {[%clk 0:04:36.4]} 17... fxg4 {[%clk 0:04:07.2]} 18.
f5 {[%clk 0:04:32.1]} 18... Qd7 {[%clk 0:03:42.3]} 19. Bh6 {[%clk 0:04:29.2]}
19... Rf6 {[%clk 0:03:40.8]} 20. e5 {[%clk 0:04:20.6]} 20... Rf7 {[%clk
0:02:33.6]} 21. e6 {[%clk 0:04:18.8]} 21... Qxd5 {[%clk 0:02:31.8]} 22. exf7+
{[%clk 0:04:16.2]} 22... Qxf7 {[%clk 0:02:30.5]} 23. fxg6 {[%clk 0:04:10.8]}
23... Qxg6 {[%clk 0:02:29.4]} 24. Qc1 {[%clk 0:04:00.3]} 24... e5 {[%clk
0:01:53.4]} 25. Qc4+ {[%clk 0:03:56.1]} 25... Kh8 {[%clk 0:01:51.1]} 26. Be3
{[%clk 0:03:22.6]} 26... Re8 {[%clk 0:01:48.8]} 27. Bxa7 {[%clk 0:03:16.4]}
27... e4 {[%clk 0:01:47.6]} 28. Bd4+ {[%clk 0:03:14.3]} 1-0

[Event "Live Chess"]
[Site "Chess.com"]
[Date "2023.05.20"]
[Round "-"]
[White "therealab0ne"]
[Black "Singapourfeuj"]
[Result "0-1"]
[WhiteElo "677"]
[BlackElo "2290"]
[TimeControl "300"]
[EndTime "9:45:35 PDT"]
[Termination "Singapourfeuj won by resignation"]

1. e4 {[%clk 0:04:59.7]} 1... e6 {[%clk 0:04:56.5]} 2. d4 {[%clk 0:04:57.3]}
2... d5 {[%clk 0:04:55.6]} 3. e5 {[%clk 0:04:56.9]} 3... c5 {[%clk 0:04:54.7]}
4. Nf3 {[%clk 0:04:56.5]} 4... Nc6 {[%clk 0:04:54]} 5. c4 {[%clk 0:04:40.6]}
5... cxd4 {[%clk 0:04:48.1]} 6. Nxd4 {[%clk 0:04:25.6]} 6... dxc4 {[%clk
0:04:43.9]} 7. Bxc4 {[%clk 0:04:21.2]} 7... Qxd4 {[%clk 0:04:41.4]} 8. Qxd4
{[%clk 0:04:17.5]} 8... Nxd4 {[%clk 0:04:40.4]} 9. O-O {[%clk 0:04:09.6]} 9...
Nc2 {[%clk 0:04:37.6]} 10. Bg5 {[%clk 0:03:52.6]} 10... Nxa1 {[%clk 0:04:35.6]}
11. Rd1 {[%clk 0:03:51.5]} 11... Bd7 {[%clk 0:04:32.7]} 12. Nc3 {[%clk 0:03:22]}
12... Be7 {[%clk 0:04:31.4]} 13. Bxe7 {[%clk 0:03:10.5]} 13... Nxe7 {[%clk
0:04:30.1]} 14. Nb5 {[%clk 0:03:10]} 14... Bxb5 {[%clk 0:04:26]} 15. Bxb5+
{[%clk 0:03:09]} 15... Nc6 {[%clk 0:04:25.1]} 16. Rd7 {[%clk 0:03:06.1]} 16...
Kxd7 {[%clk 0:04:23.9]} 17. h3 {[%clk 0:03:02.8]} 17... Nc2 {[%clk 0:04:22.6]}
0-1